Cogmind - Beta 13 @@@ ROGUE MODE // 2024.03.26 @ 10:36:41 Player: Dosh Result: Destroyed by OI-7OX(R) with Subdweller Machine Gun Performance ------------- Evolutions (0) 0 Regions Visited (2) 400 Robots Destroyed (38) 190 Value Destroyed (1082) 1082 Prototype IDs (2) 40 Alien Tech Used (0) 0 Bonus (0) 0 TOTAL SCORE: 1712 Bonus ------- None Cogmind --------- Core Integrity 0/250 Matter 300/300 Energy 100/100 System Corruption 0% Temperature Cool (0) Movement Treading (240) Ox1 Location -10/Subcaves Parts ------- > --- POWER (1) -------- (None) > --- PROPULSION (2) --- Improved Treads > --- UTILITY (2) ------ Large Storage Unit Structural Scanner > --- WEAPON (2) ------- Subdweller Machine Gun Hammer > --- INVENTORY (15) --- Light Treads Light Treads Wheel Disposable Heat Sink Huge Storage Unit Propulsion Shielding Makeshift Light Armor Plating Heavy Riot Gun Subdweller Machine Gun Barrage Gun Rocket Launcher Rocket Launcher Subdweller Shrapnel Launcher Peak State ------------ > --- POWER ------------ Subdweller Power Source > --- PROPULSION ------- Improved Treads Improved Treads > --- UTILITY ---------- Scrap Shield > --- WEAPON ----------- Subdweller Beam Cannon Light Cannon > --- INVENTORY -------- Improved Treads Improved Terrain Scanner Subdweller Machine Gun Rocket Launcher Hammer [Rating: 14] Favorites ----------- Power Light Nuclear Core Engine Ion Engine Power Core Light Nuclear Core Propulsion Improved Treads Treads Improved Treads Utility Core Shielding Device Disposable Heat Sink Storage Large Storage Unit Protection Core Shielding Weapon Light Cannon Energy Gun EM Pulse Gun Energy Cannon Subdweller Beam Cannon Ballistic Gun Assault Rifle Ballistic Cannon Light Cannon Launcher Rocket Launcher Impact Weapon Hammer Build | -11 -10 -10 ------- Run | Yrd Mat Sub Slots Evolved . | . . . Power . | . . . Propulsion . | . . . Utility . | . . . Weapon . | . . . Parts Attached 39 | 6 12 21 Power 4 | 1 1 2 Engine 3 | 1 . 2 Core 1 | . 1 . Reactor . | . . . Propulsion 7 | 2 3 2 Treads 7 | 2 3 2 Leg . | . . . Wheel . | . . . Hover . | . . . Flight . | . . . Utility 12 | 1 4 7 Device 4 | . . 4 Storage 4 | 1 2 1 Processor . | . . . Hackware . | . . . Protection 4 | . 2 2 Artifact . | . . . Weapon 16 | 2 4 10 Energy Gun 2 | 1 1 . Energy Cannon 1 | . . 1 Ballistic Gun 6 | 1 1 4 Ballistic Cannon 3 | . 1 2 Launcher 1 | . 1 . Special Weapon . | . . . Impact Weapon 3 | . . 3 Slashing Weapon . | . . . Piercing Weapon . | . . . Special Melee Weapon . | . . . Unidentified Prototypes . | . . . Parts Lost 9 | . 3 6 Power 3 | . 1 2 Propulsion 1 | . . 1 Utility 2 | . . 2 Weapon 3 | . 2 1 Highest Loss Streak 2 | . 2 2 To Critical Strikes . | . . . Average Slot Usage (%) 91 | . 98 83 Engine 6 | . 5 8 Core 4 | . 8 . Treads 28 | . 28 28 Device 3 | . . 7 Storage 8 | . 14 3 Protection 10 | . 13 7 Energy Gun 2 | . 5 . Energy Cannon 2 | . . 5 Ballistic Gun 12 | . 14 11 Ballistic Cannon 8 | . 8 7 Impact Weapon 1 | . . 3 Naked Turns . | . . . Heaviest Build 91 | 12 91 37 Greatest Support 46 | 40 46 46 Greatest Overweight (x) 1 | . 1 1 Average Overweight (x) . | . . . Largest Inventory Capacity 25 | 8 25 15 Average Capacity 12 | 7 17 7 Most Carried 15 | 4 13 15 Average Carried 8 | 2 11 6 Final Capacity 15 | 8 15 15 Final Carried 13 | 4 13 13 Class Distribution -------------------- 98% | Mutant Dominant Class ---------------- Mutant | -10/Materials Mutant | -10/Subcaves Resources | -11 -10 -10 ----------- Run | Yrd Mat Sub Matter Collected 1153 | 269 317 567 Remotely . | . . . Salvage Created 1112 | 43 626 443 Parts 78 | 6 33 39 Haulers Intercepted 1 | . 1 . Recyclers Shooed 1 | . 1 . Parts Field Recycled . | . . . Retrieved Matter . | . . . Parts Self-Destructed 11 | . . 11 Prevented . | . . . Kills | -11 -10 -10 ------- Run | Yrd Mat Sub Combat Hostiles Destroyed 29 | . 13 16 Guns 14 | . 7 7 Cannons 12 | . 3 9 AOE 3 | . 3 . Classes Destroyed 9 | 1 6 2 Builder 1 | . 1 . Tunneler 2 | 2 . . Hauler 1 | . 1 . Operator 2 | . 2 . Watcher 3 | . 3 . Swarmer 5 | . 3 2 Grunt 10 | . 10 . Sentry 1 | . . 1 Subdweller 13 | . . 13 Best Kill Streak 6 | 2 6 2 Combat Bots Only 5 | . 5 2 Max Kills in Single Turn 3 | 1 3 1 Gunslinging . | . . . Exploded 3 | . 3 . Melee . | . . . Uniques/NPCs Destroyed . | . . . Combat | -11 -10 -10 -------- Run | Yrd Mat Sub Hostile Shots Fired 142 | . 43 99 Missed 44 | . 8 36 Damage Taken 1830 | . 397 1433 Core 265 | . 77 188 Absorbed by Shields . | . . . Redirected to Shielding 16 | . 10 6 Core Remaining (%) 100 | 100 . . Volleys Fired 129 | 3 59 67 Largest 2 | 2 2 2 Hottest 115 | 60 60 115 Shots Fired 236 | 6 97 133 Gun 159 | 6 88 65 Cannon 76 | . 8 68 Launcher 1 | . 1 . Special . | . . . Kinetic 185 | 3 66 116 Thermal 17 | . . 17 Explosive 1 | . 1 . Electromagnetic 33 | 3 30 . Robot Hit Streak 22 | 2 11 22 Robot Miss Streak 3 | 3 2 3 Penetration Max . | . . . Secondary Targets . | . . . Shots Hit Robots 166 | 2 66 98 Core Hits 57 | 2 27 28 Critical Kills . | . . . Critical Parts Destroyed . | . . . Critical Strikes 2 | . 2 . Blast 1 | . 1 . Corrupt 1 | . 1 . Melee Attacks 34 | . . 34 Impact 34 | . . 34 Slashing . | . . . Piercing . | . . . Sneak Attacks . | . . . Combat Hostiles . | . . . Follow-up Attacks . | . . . Damage Inflicted 2894 | 23 1102 1769 Guns 1685 | 23 797 865 Cannons 1027 | . 123 904 Explosions 175 | . 175 . Melee . | . . . Ramming 7 | . 7 . Kinetic 2056 | 10 614 1432 Thermal 370 | . 33 337 Explosive 142 | . 142 . Electromagnetic 319 | 13 306 . Impact . | . . . Slashing . | . . . Piercing . | . . . Highest Corruption . | . . . Average Corruption . | . . . Corruption Purged . | . . . Corruption Blocked . | . . . Overload Shots . | . . . Overflow Damage 26 | . 26 . Projectiles 14 | . 14 . Explosions 12 | . 12 . Melee . | . . . Knockbacks 15 | . 1 14 Impact . | . . . Kinetic 14 | . 1 13 Secondary 1 | . . 1 Self-Inflicted Damage . | . . . Shots . | . . . Rammed 2 | . 2 . Targets Rammed 2 | . 2 . Kicked . | . . . Crushed . | . . . Highest Temperature 36 | . 36 5 Average Temperature 18 | . 18 5 Received Heat Transfer 426 | . 210 216 Siege Activations . | . . . Robots Corrupted . | . . . Combat Hostiles . | . . . Parts Fried 1 | . 1 . Impact Corruptions . | . . . Robots Melted . | . . . Combat Hostiles . | . . . Parts Melted 1 | . 1 . Heat Transferred 494 | . 50 444 Parts Sabotaged . | . . . Parts Stolen . | . . . Parts Stripped . | . . . Power Chain Reactions 1 | . 1 . Alert | -11 -10 -10 ------- Run | Yrd Mat Sub Peak Influence 259 | 10 259 . Initial 6 | . 6 . Average 101 | 3 104 . Maximum Alert Level 1 | . 1 . Low Security (%) 91 | 100 91 . Level 1 8 | . 8 . Level 2 . | . . . Level 3 . | . . . Level 4 . | . . . Level 5 . | . . . High Security . | . . . Max Security . | . . . Squads Dispatched 6 | . 6 . Investigation 4 | . 4 . Extermination . | . . . Reinforcement 2 | . 2 . Assault . | . . . Garrison . | . . . Intercept . | . . . Searches Triggered . | . . . Construction Impeded . | . . . Haulers Reinforced . | . . . Active Scanning Responses . | . . . Cargo Convoy Interrupts . | . . . Stealth | -11 -10 -10 --------- Run | Yrd Mat Sub Distress Signals 1 | . 1 . Communications Jammed . | . . . Distress Signals . | . . . Times Spotted 48 | . 27 21 Peak Tracking Total 6 | . 5 6 Tactical Retreats 2 | . 1 1 Traps | -11 -10 -10 ------- Run | Yrd Mat Sub Traps Triggered 3 | . 3 . Indirectly . | . . . Trap Hack Attempts . | . . . Triggered . | . . . Disarmed . | . . . Reprogrammed . | . . . Reused . | . . . Traps Extracted . | . . . Installed . | . . . Triggered . | . . . Machines | -11 -10 -10 ---------- Run | Yrd Mat Sub Machines Disabled . | . . . Max in Single Turn . | . . . Machines Repaired . | . . . Machines Dismantled . | . . . Machines Sabotaged . | . . . Overloaded Fab Kills . | . . . Hacking | -11 -10 -10 --------- Run | Yrd Mat Sub Machines Accessed 9 | . 8 1 Terminals 6 | . 6 . Fabricators . | . . . Repair Stations . | . . . Recycling Units 2 | . 2 . Scanalyzers . | . . . Garrison Access . | . . . Total Hacks 28 | . 27 1 Successful 18 | . 17 1 Failed 9 | . 9 . Catastrophic 1 | . 1 . Database Lockouts 1 | . 1 . Manual 18 | . 18 . Terminals 24 | . 24 . Fabricators . | . . . Repair Stations . | . . . Recycling Units 3 | . 3 . Scanalyzers . | . . . Garrison Access . | . . . Terminal Hacks 13 | . 12 1 Record 1 | . . 1 Part Schematic 2 | . 2 . Robot Schematic 1 | . 1 . Robot Analysis 4 | . 4 . Prototype ID Bank 1 | . 1 . Locate Traps 2 | . 2 . Hauler Manifests 2 | . 2 . Fabricator Hacks . | . . . Repair Station Hacks . | . . . Recycling Unit Hacks . | . . . Scanalyzer . | . . . Garrison Access Hacks . | . . . Unauthorized Hacks 5 | . 5 . Terminals 3 | . 3 . Assimilate 1 | . 1 . Botnet 1 | . 1 . Operators 1 | . 1 . Fabricators . | . . . Repair Stations . | . . . Recycling Units 2 | . 2 . Tunnel 2 | . 2 . Scanalyzers . | . . . Garrison Access . | . . . Data Cores Recovered . | . . . Used . | . . . Hacking Detections 6 | . 6 . Full Trace Events 1 | . 1 . Feedback Events . | . . . Feedback Blocked . | . . . Robot Schematics Acquired 1 | . 1 . Robots Built . | . . . Authchips . | . . . Time . | . . . Total Robot Build Rating . | . . . Part Schematics Acquired 2 | . 2 . Parts Built . | . . . Authchips . | . . . Time . | . . . Total Part Build Rating . | . . . Parts Repaired . | . . . Time . | . . . Parts Recycled . | . . . Recycled Matter . | . . . Retrieved Matter . | . . . Retrieved Components . | . . . Parts Scanalyzed . | . . . Part Schematics Acquired . | . . . Parts Damaged . | . . . Bothacking | -11 -10 -10 ------------ Run | Yrd Mat Sub Used RIF Installer . | . . . Robots Hacked . | . . . Non-combat . | . . . Combat . | . . . Robot Hacks Applied . | . . . Relay Couplers Released . | . . . Fabnet Peak Effective % . | . . . Robots Rewired . | . . . Allies Hacked . | . . . Hacks Repelled . | . . . Allies | -11 -10 -10 -------- Run | Yrd Mat Sub Total Allies . | . . . Largest Group . | . . . Highest-Rated Group . | . . . Highest-Rated Ally . | . . . Total Orders . | . . . Ally Attacks . | . . . Total Damage . | . . . Kills . | . . . Allies Corrupted . | . . . Allies Melted . | . . . Intel | -11 -10 -10 ------- Run | Yrd Mat Sub Robot Analysis Total 4 | . 4 . Derelict Logs Recovered 1 | . . 1 Drone Launches . | . . . Drone Recoveries . | . . . Exploration | -11 -10 -10 ------------- Run | Yrd Mat Sub Turns Passed 5455 | 98 2607 2750 Spaces Moved 2333 | 50 820 1463 Core 3 | 3 . . Treads 2330 | 47 820 1463 Legs . | . . . Wheels . | . . . Hover . | . . . Flight . | . . . Fastest Speed 50 | 50 160 160 Average Speed 169 | 153 187 160 Slowest Speed 240 | 160 240 240 Overloaded Moves . | . . . Propulsion Burnouts . | . . . Robots Hopped . | . . . Cave-ins Triggered . | . . . Exploration Rate (%) 61 | 4 100 79 Regions Visited 2 Branch Regions 1 Pre-discovered Areas 4 | . 2 2 Known Exits Taken . | . . . Unknown Exits Taken 2 | 1 1 . Scrap Searched 4 | . . 4 Spaces Dug 9 | . . 9 Terrain Destroyed 20 | . 10 10 Melee 9 | . . 9 Projectile 1 | . . 1 AOE 10 | . 10 . Terrain Rammed . | . . . Walls Destroyed . | . . . Machines Disabled . | . . . Actions | -11 -10 -10 --------- Run | Yrd Mat Sub Total 3531 | 62 1791 1678 Wait 952 | . 885 67 Move 2331 | 49 819 1463 Hop . | . . . Pick Up 27 | 4 10 13 Fast Attach 17 | 6 4 7 Attach 4 | . 2 2 Detach 2 | . 1 1 Swap 18 | . 6 12 Drop 12 | . 3 9 Fire 129 | 3 59 67 Melee 34 | . . 34 Ram . | . . . Kick . | . . . Crush 2 | . 2 . Escape Stasis . | . . . Rewire . | . . . Trap . | . . . Miscellaneous 3 | . . 3 Route ------- -11/Scrapyard -10/Materials (discovered 5 exits: [*Mat x3] / [*Min] / *Sub) -10/Subcaves (discovered 2 exits: [*Mat x2]) History --------- Turn | Location | Event 35 | -11/Scrapyard | Discovered new exit (range 15) 99 | -11/Scrapyard | Entered Materials 300 | -10/Materials | Build established: Mutant 373 | -10/Materials | Discovered new exit (range 16) 489 | -10/Materials | Discovered new exit (range 6) 726 | -10/Materials | Discovered new exit (range 13) 1163 | -10/Materials | Discovered new exit (range 12) 1284 | -10/Materials | Central database locked down 1909 | -10/Materials | Discovered new exit (range 7) 2706 | -10/Materials | Entered Subcaves 2984 | -10/Subcaves | Disturbed a concealed Subdweller 3199 | -10/Subcaves | Discovered new exit (range 14) 3266 | -10/Subcaves | Learned location of Zion (-7) 3266 | -10/Subcaves | Met a Zionite searching for "candidates" 3287 | -10/Subcaves | A swath of the cavern ceiling suddenly collapsed 3292 | -10/Subcaves | Shifting Twisted Machinery released Flamer 3565 | -10/Subcaves | Visited Clippyterm 3592 | -10/Subcaves | Discovered new exit (range 5) 3765 | -10/Subcaves | Core integrity fell below 50% 4020 | -10/Subcaves | Ambushed by angry Subdweller bent on revenge 4028 | -10/Subcaves | Core integrity fell below 20% 4961 | -10/Subcaves | Shifting Twisted Machinery released Hvy. Riot Gun 5194 | -10/Subcaves | Shifting Twisted Machinery released Mak. Flight Unit 5450 | -10/Subcaves | A Subdweller sparked back to life 5450 | -10/Subcaves | A Subdweller sparked back to life 5450 | -10/Subcaves | A Subdweller sparked back to life 5456 | -10/Subcaves | Destroyed by OI-7OX(R) with Subdweller Machine Gun Last Messages --------------- 05096_ Acquired Wheel. 05098_ Acquired Rocket Launcher. 05101_ Acquired Lgt. Treads. 05103_ Acquired Disposable Heat Sink. 05109_ Acquired Barrage Gun. 05110_ Acquired 20 matter. Mak. Flight Unit falls loose from the Twisted Machinery. 05305_ Acquired 10 matter. 05338_ GC-6GA(O) wakes at your presence. 05338_ GC-6GA(O): "LVR3C?" 05341_ GC-6GA(O) collects matter. 05437_ GC-6GA(O) puts together Sub. Laser. 05450_ M6-CL2(R) creaks and sparks as it begins to move. 05450_ V3-5KG(R) creaks and sparks as it begins to move. 05450_ OI-7OX(R) creaks and sparks as it begins to move. 05450_ Imp. Treads destroyed. Map ----- +----------------------------------------------------+ | ??? ## ###??####### # ###?### "" # | | ?? ?### % ########## ##??## #" # | | ?? ## ##### ## ####### ##??######## # | | ? ### ##############??######### # | | ? ################????????### # | | ? # ## ### ###??????????## " # | | ????## ###?######???## | | ????##### ##?#######??### # | | ????##### ## ## ######% ####?## "" | | ????##### ######### ##### ###?###" | | ????## ########## ##### ##?### | | ????### ####### #### ##??###" | | ????#### ## ###### ## ## ###?###" | | ?????#### ######## ##### ###?###" | | ??????#### ##### # ####### ####""" | | ???????#### [ ###?##############"" | | ????????#### # ##??################# | | ?????????### %# # %##?????????????###### | | ??????????### ### R ####?????????????????? | | ??????????### ## ;#####???????????????? | | ???????????### ##### R;;####???????????????? | | ???????????########## O ; ##???????????????? | | ????????????#####??### & ;###???????????????? | | ???????????????????####; ; ##????????????????? | | ????????????????????###;R ;;####????????????????? | | ?????????????????????##; @ ; ####????????????????? | | ?????????????????????## ####??????????????????? | | ????????????????????### ####??????????????????? | | ????????????????????## ###????????????????????? | | ???????????????????? ###????????????????????? | | ?????????????????## ##?????????????????????? | | ?????????????????### ###?????????????????????? | | ?????????????????### ####?????????????????????? | | ??????????????????## ##???????????????????????? | | ??????????????????# ?????????????????????????? | | ?????????????????? ?????????????????????????? | | ????????????????? ?????????????????????????? | | ????????????????? ## ??????????????????????????? | | ?????????????????##### #?????????????????????????? | | ??????????????????######?????????????????????????? | | ????????????????????####?????????????????????????? | | ?????????????????????????????????????????????????? | | ?????????????????????????????????????????????????? | | ?????????????????????????????????????????????????? | | ?????????????????????????????????????????????????? | | ?????????????????????????????????????????????????? | | ?????????????????????????????????????????????????? | | ?????????????????????????????????????????????????? | | ?????????????????????????????????????????????????? | | ?????????????????????????????????????????????????? | +----------------------------------------------------+ Best States ------------- Heat Dissipation 25 Coolant Potential 50 Energy Generation 15 Energy Capacity 250 Matter Stores 300 Matter Capacity 300 Sight Range 16 Terrain Scan Range 16 Terrain Scan Density 10 Armor Coverage 800 Core Shielding 20 Propulsion Shielding 33 Evasion (%) 40 Recoil Reduction 2 Item Schematics ----------------- Huge Storage Unit | -10/Materials | Hacked Cargo Storage Unit | -10/Materials | Hacked Robot Schematics ------------------ M-13 Machinist | -10/Materials | Hacked Fabricated ------------ Nothing Alien Tech Used ----------------- None Achievements -------------- None Challenges ------------ None Game ------ Seed SpacefoldSniperScreen Manual? 0 Play Time 00:25:43 Cumulative 303.5 hours Start 2024.03.26 @ 10:19:18 End 2024.03.26 @ 10:36:41 Sessions 1 Manual Loads 0 Difficulty Rogue Special Mode None Game No. 205 Rogue 205 Adventurer 0 Explorer 0 Win Type - Total 14 Types 9/1/1/1/1/0/0/1/0 Lore% 72 Gallery% 83 Achievement% 72 Wizard Run 0 Options --------- Layout 2 ASCII 0 Keyboard 1 Movement Numpad Keybinds 0 Fullscreen 2 Font 24/Smallcaps Map View 50x44 Zoom Use 0% Tactical HUD 1 Map Filters NONE Filters NONE Steam 1 RUN: e43c4cc7-2852-45a7-a28a-31a7dca8afc5